[Event "December 5 Early 2023"]
[Site "https://www.chess.com"]
[Date "2023.12.05"]
[Round "5"]
[White "Kokoszczynski, Jan"]
[Black "Lehtosaari, Mauri"]
[Result "1-0"]
[Board "102"]
[TimeControl "180+1"]
[WhiteFideId "1174460"]
[BlackFideId "501999"]
[WhiteElo "2653"]
[BlackElo "2483"]
[WhiteTeam "POL"]
[BlackTeam "FIN"]
[WhiteClock "0:00:03"]
[BlackClock "0:00:04"]

1. e4 {[%clk 0:03:00]}  c5 {[%clk 0:02:57]} 2. Nf3 {[%clk 0:02:58]}  e6 {[%clk 0:02:57]} 3. c3 {[%clk 0:02:55]}  Nf6 {[%clk 0:02:55]} 4. d3 {[%clk 0:02:46]}  Nc6 {[%clk 0:02:47]} 5. g3 {[%clk 0:02:33]}  d5 {[%clk 0:02:37]} 6. e5 {[%clk 0:02:32]}  Nd7 {[%clk 0:02:29]} 7. Qe2 {[%clk 0:02:32]}  Qc7 {[%clk 0:02:18]} 8. Bf4 {[%clk 0:02:31]}  Be7 {[%clk 0:02:15]} 9. h4 {[%clk 0:02:30]}  b5 {[%clk 0:02:13]} 10. Bg2 {[%clk 0:02:30]}  a5 {[%clk 0:02:12]} 11. O-O {[%clk 0:02:29]}  b4 {[%clk 0:02:11]} 12. c4 {[%clk 0:02:22]}  Nb6 {[%clk 0:01:59]} 13. Nbd2 {[%clk 0:02:20]}  Ba6 {[%clk 0:01:54]} 14. b3 {[%clk 0:02:20]}  a4 {[%clk 0:01:53]} 15. h5 {[%clk 0:02:15]}  h6 {[%clk 0:01:39]} 16. Rac1 {[%clk 0:02:14]}  dxc4 {[%clk 0:01:33]} 17. dxc4 {[%clk 0:02:06]}  Rd8 {[%clk 0:01:29]} 18. Ne4 {[%clk 0:02:05]}  Bb7 {[%clk 0:01:24]} 19. Qe3 {[%clk 0:01:41]}  Nd4 {[%clk 0:01:15]} 20. Nxd4 {[%clk 0:01:41]}  cxd4 {[%clk 0:01:15]} 21. Qd3 {[%clk 0:01:34]}  O-O {[%clk 0:01:09]} 22. Rfe1 {[%clk 0:01:28]}  axb3 {[%clk 0:01:06]} 23. axb3 {[%clk 0:01:28]}  Nd7 {[%clk 0:00:57]} 24. c5 {[%clk 0:00:29]}  Bxe4 {[%clk 0:00:49]} 25. Qxe4 {[%clk 0:00:21]}  Nxc5 {[%clk 0:00:49]} 26. Qe2 {[%clk 0:00:17]}  Qb8 {[%clk 0:00:33]} 27. Rc4 {[%clk 0:00:13]}  Nxb3 {[%clk 0:00:26]} 28. Be4 {[%clk 0:00:12]}  Nc5 {[%clk 0:00:24]} 29. Qg4 {[%clk 0:00:12]}  Kh8 {[%clk 0:00:22]} 30. Rxc5 {[%clk 0:00:10]}  Bxc5 {[%clk 0:00:21]} 31. Bxh6 {[%clk 0:00:11]}  gxh6 {[%clk 0:00:20]} 32. Qf4 {[%clk 0:00:11]}  Kg7 {[%clk 0:00:16]} 33. Qf6+ {[%clk 0:00:11]}  Kg8 {[%clk 0:00:15]} 34. Qxh6 {[%clk 0:00:11]}  f5 {[%clk 0:00:13]} 35. Qxe6+ {[%clk 0:00:07]}  Kh8 {[%clk 0:00:10]} 36. Qh6+ {[%clk 0:00:07]}  Kg8 {[%clk 0:00:10]} 37. Qg6+ {[%clk 0:00:07]}  Kh8 {[%clk 0:00:10]} 38. Bxf5 {[%clk 0:00:05]}  Qc7 {[%clk 0:00:09]} 39. Qh6+ {[%clk 0:00:03]}  Kg8 {[%clk 0:00:09]} 40. Be6+ {[%clk 0:00:04]}  Rf7 {[%clk 0:00:09]} 41. Re4 {[%clk 0:00:03]}  Bf8 {[%clk 0:00:03]} 42. Rg4+ {[%clk 0:00:03]}  Bg7 {[%clk 0:00:04]} 43. Qxg7# {[%clk 0:00:03]} 1-0

[Event "December 5 Early 2023"]
[Site "https://www.chess.com"]
[Date "2023.12.05"]
[Round "5"]
[White "Spata, German"]
[Black "Pourkashiyan, Atousa"]
[Result "1-0"]
[Board "103"]
[TimeControl "180+1"]
[WhiteFideId "113026"]
[BlackFideId "12502014"]
[WhiteElo "2645"]
[BlackElo "2481"]
[WhiteTeam "ARG"]
[BlackTeam "USA"]
[WhiteClock "0:00:14"]
[BlackClock "0:00:25"]

1. Nf3 {[%clk 0:02:45]}  d5 {[%clk 0:02:54]} 2. b3 {[%clk 0:02:44]}  Nf6 {[%clk 0:02:52]} 3. Bb2 {[%clk 0:02:44]}  e6 {[%clk 0:02:53]} 4. e3 {[%clk 0:02:44]}  Be7 {[%clk 0:02:51]} 5. c4 {[%clk 0:02:44]}  O-O {[%clk 0:02:48]} 6. Be2 {[%clk 0:02:43]}  b6 {[%clk 0:02:49]} 7. O-O {[%clk 0:02:43]}  Bb7 {[%clk 0:02:49]} 8. Nc3 {[%clk 0:02:42]}  c5 {[%clk 0:02:44]} 9. cxd5 {[%clk 0:02:40]}  Nxd5 {[%clk 0:02:40]} 10. d4 {[%clk 0:02:38]}  Nxc3 {[%clk 0:02:21]} 11. Bxc3 {[%clk 0:02:29]}  Nc6 {[%clk 0:02:21]} 12. Rc1 {[%clk 0:02:24]}  Rc8 {[%clk 0:02:04]} 13. Qd2 {[%clk 0:02:08]}  cxd4 {[%clk 0:02:02]} 14. Nxd4 {[%clk 0:02:08]}  Ba3 {[%clk 0:02:01]} 15. Rcd1 {[%clk 0:01:37]}  Nxd4 {[%clk 0:01:55]} 16. Bxd4 {[%clk 0:01:38]}  Qg5 {[%clk 0:01:54]} 17. f3 {[%clk 0:01:32]}  Rfd8 {[%clk 0:01:49]} 18. Bd3 {[%clk 0:00:40]}  e5 {[%clk 0:01:43]} 19. f4 {[%clk 0:00:40]}  Qxg2+ {[%clk 0:01:13]} 20. Qxg2 {[%clk 0:00:38]}  Bxg2 {[%clk 0:01:14]} 21. Kxg2 {[%clk 0:00:34]}  exd4 {[%clk 0:01:14]} 22. exd4 {[%clk 0:00:33]}  g6 {[%clk 0:01:15]} 23. Bc4 {[%clk 0:00:30]}  Bb2 {[%clk 0:01:07]} 24. f5 {[%clk 0:00:28]}  g5 {[%clk 0:01:01]} 25. f6 {[%clk 0:00:27]}  Rxd4 {[%clk 0:00:53]} 26. Rxd4 {[%clk 0:00:26]}  Bxd4 {[%clk 0:00:54]} 27. Rf5 {[%clk 0:00:26]}  h6 {[%clk 0:00:55]} 28. Rd5 {[%clk 0:00:23]}  Bxf6 {[%clk 0:00:26]} 29. Rd7 {[%clk 0:00:23]}  a5 {[%clk 0:00:21]} 30. Bxf7+ {[%clk 0:00:23]}  Kf8 {[%clk 0:00:19]} 31. Bc4 {[%clk 0:00:23]}  Bc3 {[%clk 0:00:18]} 32. Rf7+ {[%clk 0:00:21]}  Ke8 {[%clk 0:00:19]} 33. Rh7 {[%clk 0:00:20]}  Rc5 {[%clk 0:00:17]} 34. a4 {[%clk 0:00:17]}  Re5 {[%clk 0:00:14]} 35. Rxh6 {[%clk 0:00:16]}  Bd2 {[%clk 0:00:14]} 36. Rxb6 {[%clk 0:00:14]}  Bb4 {[%clk 0:00:15]} 37. Rg6 {[%clk 0:00:13]}  Ke7 {[%clk 0:00:15]} 38. Kf3 {[%clk 0:00:13]}  Rc5 {[%clk 0:00:14]} 39. Kg4 {[%clk 0:00:11]}  Bd2 {[%clk 0:00:14]} 40. Re6+ {[%clk 0:00:11]}  Kd7 {[%clk 0:00:13]} 41. Re4 {[%clk 0:00:10]}  Kc7 {[%clk 0:00:11]} 42. h3 {[%clk 0:00:10]}  Bc1 {[%clk 0:00:11]} 43. Re7+ {[%clk 0:00:09]}  Kd6 {[%clk 0:00:11]} 44. Re6+ {[%clk 0:00:10]}  Kd7 {[%clk 0:00:11]} 45. Re4 {[%clk 0:00:11]}  Kc7 {[%clk 0:00:11]} 46. Rd4 {[%clk 0:00:11]}  Be3 {[%clk 0:00:10]} 47. Rd3 {[%clk 0:00:10]}  Bc1 {[%clk 0:00:10]} 48. Rf3 {[%clk 0:00:09]}  Bd2 {[%clk 0:00:09]} 49. Rf6 {[%clk 0:00:09]}  Bb4 {[%clk 0:00:08]} 50. Rf7+ {[%clk 0:00:07]}  Kd6 {[%clk 0:00:08]} 51. Ra7 {[%clk 0:00:06]}  Re5 {[%clk 0:00:07]} 52. Ra6+ {[%clk 0:00:06]}  Ke7 {[%clk 0:00:08]} 53. Rg6 {[%clk 0:00:05]}  Bd2 {[%clk 0:00:08]} 54. Rg7+ {[%clk 0:00:05]}  Kf6 {[%clk 0:00:08]} 55. Rb7 {[%clk 0:00:06]}  Re4+ {[%clk 0:00:08]} 56. Kf3 {[%clk 0:00:06]}  Rf4+ {[%clk 0:00:08]} 57. Ke2 {[%clk 0:00:06]}  Bb4 {[%clk 0:00:09]} 58. Rb5 {[%clk 0:00:04]}  Rh4 {[%clk 0:00:08]} 59. Bd3 {[%clk 0:00:02]}  Rxh3 {[%clk 0:00:08]} 60. Rf5+ {[%clk 0:00:03]}  Ke6 {[%clk 0:00:08]} 61. Rf3 {[%clk 0:00:03]}  Rxf3 {[%clk 0:00:08]} 62. Kxf3 {[%clk 0:00:04]}  Kf6 {[%clk 0:00:09]} 63. Kg4 {[%clk 0:00:04]}  Bc3 {[%clk 0:00:09]} 64. Bc4 {[%clk 0:00:05]}  Bd2 {[%clk 0:00:09]} 65. Bb5 {[%clk 0:00:05]}  Ke5 {[%clk 0:00:10]} 66. Bc4 {[%clk 0:00:06]}  Kd4 {[%clk 0:00:10]} 67. Bb5 {[%clk 0:00:07]}  Kc5 {[%clk 0:00:11]} 68. Be8 {[%clk 0:00:07]}  Kb4 {[%clk 0:00:11]} 69. Bd7 {[%clk 0:00:07]}  Bc1 {[%clk 0:00:12]} 70. Bb5 {[%clk 0:00:08]}  Bd2 {[%clk 0:00:12]} 71. Be8 {[%clk 0:00:09]}  Bc1 {[%clk 0:00:13]} 72. Bb5 {[%clk 0:00:09]}  Bd2 {[%clk 0:00:12]} 73. Be8 {[%clk 0:00:09]}  Kxb3 {[%clk 0:00:12]} 74. Bb5 {[%clk 0:00:08]}  Kb4 {[%clk 0:00:12]} 75. Be8 {[%clk 0:00:08]}  Kc5 {[%clk 0:00:13]} 76. Bb5 {[%clk 0:00:08]}  Kd6 {[%clk 0:00:14]} 77. Be8 {[%clk 0:00:09]}  Bb4 {[%clk 0:00:15]} 78. Bb5 {[%clk 0:00:09]}  Ke7 {[%clk 0:00:16]} 79. Bc6 {[%clk 0:00:09]}  Kd6 {[%clk 0:00:17]} 80. Bb5 {[%clk 0:00:09]}  Kc7 {[%clk 0:00:17]} 81. Be8 {[%clk 0:00:10]}  Bc3 {[%clk 0:00:18]} 82. Bb5 {[%clk 0:00:10]}  Kd8 {[%clk 0:00:18]} 83. Bc6 {[%clk 0:00:10]}  Ke7 {[%clk 0:00:19]} 84. Kxg5 {[%clk 0:00:09]}  Bd2+ {[%clk 0:00:19]} 85. Kf5 {[%clk 0:00:09]}  Kd6 {[%clk 0:00:20]} 86. Bb5 {[%clk 0:00:10]}  Bc3 {[%clk 0:00:20]} 87. Ke4 {[%clk 0:00:10]}  Kc5 {[%clk 0:00:21]} 88. Kd3 {[%clk 0:00:11]}  Kb4 {[%clk 0:00:22]} 89. Kc2 {[%clk 0:00:12]}  Bb2 {[%clk 0:00:23]} 90. Kxb2 {[%clk 0:00:12]}  Kc5 {[%clk 0:00:23]} 91. Kb3 {[%clk 0:00:12]}  Kb6 {[%clk 0:00:24]} 92. Kc4 {[%clk 0:00:12]}  Kc7 {[%clk 0:00:24]} 93. Kc5 {[%clk 0:00:13]}  Kb7 {[%clk 0:00:25]} 94. Bc4 {[%clk 0:00:13]}  Ka7 {[%clk 0:00:26]} 95. Kb5 {[%clk 0:00:13]}  Kb8 {[%clk 0:00:26]} 96. Kxa5 {[%clk 0:00:13]}  Ka7 {[%clk 0:00:27]} 97. Bb5 {[%clk 0:00:13]}  Kb7 {[%clk 0:00:25]} 98. Bf1 {[%clk 0:00:14]} 1-0

[Event "December 5 Early 2023"]
[Site "https://www.chess.com"]
[Date "2023.12.05"]
[Round "5"]
[White "Gubajdullin, Alexei"]
[Black "Tabuenca Mendataurigoitia, Daniel"]
[Result "0-1"]
[Board "104"]
[TimeControl "180+1"]
[WhiteFideId "4141202"]
[BlackFideId "24563617"]
[WhiteElo "2639"]
[BlackElo "2473"]
[WhiteTeam "RUS"]
[BlackTeam "ESP"]
[WhiteClock "0:00:35"]
[BlackClock "0:00:25"]

1. d4 {[%clk 0:03:00]}  d6 {[%clk 0:02:59]} 2. Nf3 {[%clk 0:03:00]}  Nf6 {[%clk 0:02:57]} 3. Bf4 {[%clk 0:02:59]}  g6 {[%clk 0:02:56]} 4. e3 {[%clk 0:02:59]}  Bg7 {[%clk 0:02:56]} 5. Be2 {[%clk 0:02:59]}  O-O {[%clk 0:02:56]} 6. O-O {[%clk 0:02:59]}  c5 {[%clk 0:02:55]} 7. h3 {[%clk 0:02:59]}  Nc6 {[%clk 0:02:53]} 8. dxc5 {[%clk 0:02:57]}  dxc5 {[%clk 0:02:53]} 9. Qxd8 {[%clk 0:02:57]}  Rxd8 {[%clk 0:02:53]} 10. c3 {[%clk 0:02:57]}  Ne4 {[%clk 0:02:46]} 11. Na3 {[%clk 0:02:54]}  e5 {[%clk 0:02:36]} 12. Bh2 {[%clk 0:02:52]}  f6 {[%clk 0:02:35]} 13. Rfd1 {[%clk 0:02:52]}  Be6 {[%clk 0:02:34]} 14. Bc4 {[%clk 0:02:34]}  Bxc4 {[%clk 0:02:27]} 15. Nxc4 {[%clk 0:02:34]}  b5 {[%clk 0:02:26]} 16. Na3 {[%clk 0:02:24]}  a6 {[%clk 0:02:26]} 17. Kf1 {[%clk 0:02:23]}  Bf8 {[%clk 0:02:18]} 18. Nc2 {[%clk 0:02:16]}  c4 {[%clk 0:02:13]} 19. Ke2 {[%clk 0:02:14]}  Kf7 {[%clk 0:02:13]} 20. Rxd8 {[%clk 0:02:13]}  Rxd8 {[%clk 0:02:12]} 21. Bg1 {[%clk 0:02:11]}  Nc5 {[%clk 0:02:03]} 22. Rd1 {[%clk 0:02:02]}  Na4 {[%clk 0:01:46]} 23. Rb1 {[%clk 0:01:59]}  b4 {[%clk 0:01:31]} 24. cxb4 {[%clk 0:01:58]}  Nxb4 {[%clk 0:01:31]} 25. Nxb4 {[%clk 0:01:53]}  Bxb4 {[%clk 0:01:31]} 26. Rc1 {[%clk 0:01:34]}  Nxb2 {[%clk 0:01:28]} 27. Rc2 {[%clk 0:01:34]}  c3 {[%clk 0:01:24]} 28. Bh2 {[%clk 0:01:32]}  Nc4 {[%clk 0:01:20]} 29. g4 {[%clk 0:01:30]}  g5 {[%clk 0:01:11]} 30. h4 {[%clk 0:01:30]}  h6 {[%clk 0:01:10]} 31. hxg5 {[%clk 0:01:27]}  hxg5 {[%clk 0:01:11]} 32. Ne1 {[%clk 0:01:15]}  Na3 {[%clk 0:01:10]} 33. Rc1 {[%clk 0:01:14]}  Rd2+ {[%clk 0:01:09]} 34. Kf1 {[%clk 0:01:12]}  c2 {[%clk 0:01:04]} 35. Kg2 {[%clk 0:01:10]}  Bc3 {[%clk 0:00:50]} 36. Nxc2 {[%clk 0:00:56]}  Rxc2 {[%clk 0:00:45]} 37. Rd1 {[%clk 0:00:56]}  Rxa2 {[%clk 0:00:45]} 38. Rd7+ {[%clk 0:00:51]}  Ke6 {[%clk 0:00:42]} 39. Ra7 {[%clk 0:00:52]}  Nc4 {[%clk 0:00:41]} 40. Kf3 {[%clk 0:00:49]}  Be1 {[%clk 0:00:38]} 41. Bg1 {[%clk 0:00:48]}  Nd6 {[%clk 0:00:37]} 42. Ra8 {[%clk 0:00:47]}  a5 {[%clk 0:00:36]} 43. Ra6 {[%clk 0:00:46]}  a4 {[%clk 0:00:36]} 44. Kg2 {[%clk 0:00:44]}  a3 {[%clk 0:00:35]} 45. Kf3 {[%clk 0:00:43]}  Bb4 {[%clk 0:00:34]} 46. Bh2 {[%clk 0:00:43]}  Rb2 {[%clk 0:00:33]} 47. Bg3 {[%clk 0:00:41]}  a2 {[%clk 0:00:32]} 48. Kg2 {[%clk 0:00:40]}  Rc2 {[%clk 0:00:29]} 49. Kh3 {[%clk 0:00:39]}  Bc3 {[%clk 0:00:29]} 50. f4 {[%clk 0:00:39]}  a1=Q {[%clk 0:00:25]} 51. f5+ {[%clk 0:00:35]}  Kd5 {[%clk 0:00:25]} 0-1

[Event "December 5 Early 2023"]
[Site "https://www.chess.com"]
[Date "2023.12.05"]
[Round "5"]
[White "Ozen, Metehan"]
[Black "Kuderinov, Kirill"]
[Result "0-1"]
[Board "106"]
[TimeControl "180+1"]
[WhiteFideId "34596054"]
[BlackFideId "13701568"]
[WhiteElo "2461"]
[BlackElo "2636"]
[WhiteTeam "TUR"]
[BlackTeam "KAZ"]
[WhiteClock "0:00:00"]
[BlackClock "0:00:05"]

1. c4 {[%clk 0:03:00]}  e5 {[%clk 0:02:57]} 2. Nc3 {[%clk 0:03:00]}  Nf6 {[%clk 0:02:56]} 3. Nf3 {[%clk 0:03:00]}  Nc6 {[%clk 0:02:55]} 4. e3 {[%clk 0:03:00]}  Be7 {[%clk 0:02:53]} 5. a3 {[%clk 0:02:55]}  O-O {[%clk 0:02:53]} 6. b4 {[%clk 0:02:53]}  d6 {[%clk 0:02:51]} 7. Bb2 {[%clk 0:02:50]}  Bg4 {[%clk 0:02:51]} 8. Be2 {[%clk 0:02:46]}  Re8 {[%clk 0:02:45]} 9. d3 {[%clk 0:02:39]}  a5 {[%clk 0:02:37]} 10. b5 {[%clk 0:02:37]}  Nb8 {[%clk 0:02:37]} 11. h3 {[%clk 0:02:35]}  Bh5 {[%clk 0:02:37]} 12. O-O {[%clk 0:02:33]}  Nbd7 {[%clk 0:02:36]} 13. Nh4 {[%clk 0:02:33]}  Bxe2 {[%clk 0:02:30]} 14. Qxe2 {[%clk 0:02:34]}  Ne4 {[%clk 0:02:27]} 15. Nf5 {[%clk 0:02:25]}  Nxc3 {[%clk 0:02:26]} 16. Bxc3 {[%clk 0:02:24]}  Bf6 {[%clk 0:02:23]} 17. e4 {[%clk 0:02:13]}  Nc5 {[%clk 0:02:13]} 18. Rad1 {[%clk 0:02:04]}  Ne6 {[%clk 0:02:11]} 19. g3 {[%clk 0:02:02]}  g6 {[%clk 0:02:09]} 20. Ne3 {[%clk 0:02:00]}  Bg7 {[%clk 0:02:08]} 21. Kg2 {[%clk 0:01:57]}  Nd4 {[%clk 0:02:07]} 22. Qb2 {[%clk 0:01:49]}  Qd7 {[%clk 0:02:00]} 23. f4 {[%clk 0:01:43]}  c6 {[%clk 0:01:54]} 24. f5 {[%clk 0:01:38]}  d5 {[%clk 0:01:32]} 25. cxd5 {[%clk 0:01:25]}  Nxb5 {[%clk 0:01:21]} 26. f6 {[%clk 0:01:23]}  Bf8 {[%clk 0:01:13]} 27. Bxe5 {[%clk 0:01:14]}  Rac8 {[%clk 0:01:03]} 28. a4 {[%clk 0:01:09]}  Nc7 {[%clk 0:00:53]} 29. Nc4 {[%clk 0:00:49]}  Na8 {[%clk 0:00:45]} 30. dxc6 {[%clk 0:00:40]}  Rxc6 {[%clk 0:00:41]} 31. Bf4 {[%clk 0:00:28]}  Bb4 {[%clk 0:00:37]} 32. Ne5 {[%clk 0:00:25]}  Rxe5 {[%clk 0:00:37]} 33. Qxe5 {[%clk 0:00:24]}  Nc7 {[%clk 0:00:35]} 34. d4 {[%clk 0:00:23]}  Ne8 {[%clk 0:00:26]} 35. d5 {[%clk 0:00:22]}  Rc4 {[%clk 0:00:24]} 36. Rf2 {[%clk 0:00:18]}  h5 {[%clk 0:00:23]} 37. Qg5 {[%clk 0:00:17]}  Bf8 {[%clk 0:00:21]} 38. e5 {[%clk 0:00:17]}  Qxa4 {[%clk 0:00:19]} 39. e6 {[%clk 0:00:16]}  Qxd1 {[%clk 0:00:18]} 40. e7 {[%clk 0:00:15]}  Bxe7 {[%clk 0:00:15]} 41. fxe7 {[%clk 0:00:15]}  Qe1 {[%clk 0:00:15]} 42. d6 {[%clk 0:00:14]}  Qe4+ {[%clk 0:00:16]} 43. Kh2 {[%clk 0:00:14]}  Rd4 {[%clk 0:00:14]} 44. Qe5 {[%clk 0:00:11]}  Qd3 {[%clk 0:00:13]} 45. Bh6 {[%clk 0:00:09]}  Rxd6 {[%clk 0:00:09]} 46. Bf8 {[%clk 0:00:09]}  Re6 {[%clk 0:00:06]} 47. Qxa5 {[%clk 0:00:08]}  Qe3 {[%clk 0:00:06]} 48. Rg2 {[%clk 0:00:06]}  Qe4 {[%clk 0:00:05]} 49. Qg5 {[%clk 0:00:05]}  Nf6 {[%clk 0:00:05]} 50. Qh6 {[%clk 0:00:03]}  Ne8 {[%clk 0:00:05]} 51. Qd2 {[%clk 0:00:03]}  b5 {[%clk 0:00:05]} 52. Qd8 {[%clk 0:00:03]}  Qc6 {[%clk 0:00:04]} 53. Bh6 {[%clk 0:00:03]}  Re1 {[%clk 0:00:04]} 54. Bf4 {[%clk 0:00:03]}  b4 {[%clk 0:00:04]} 55. Qb8 {[%clk 0:00:03]}  Re4 {[%clk 0:00:02]} 56. Rd2 {[%clk 0:00:02]}  Rxe7 {[%clk 0:00:02]} 57. Qxb4 {[%clk 0:00:01]}  Qe4 {[%clk 0:00:02]} 58. Qxe4 {[%clk 0:00:01]}  Rxe4 {[%clk 0:00:02]} 59. h4 {[%clk 0:00:02]}  Re6 {[%clk 0:00:03]} 60. Rd8 {[%clk 0:00:03]}  Kg7 {[%clk 0:00:02]} 61. Kg2 {[%clk 0:00:03]}  Nf6 {[%clk 0:00:03]} 62. Kf3 {[%clk 0:00:03]}  Ng4 {[%clk 0:00:04]} 63. Ra8 {[%clk 0:00:03]}  Rc6 {[%clk 0:00:04]} 64. Bd2 {[%clk 0:00:03]}  Rc2 {[%clk 0:00:04]} 65. Ke2 {[%clk 0:00:03]}  Rc4 {[%clk 0:00:03]} 66. Kd3 {[%clk 0:00:03]}  Rc6 {[%clk 0:00:04]} 67. Bc3+ {[%clk 0:00:04]}  f6 {[%clk 0:00:04]} 68. Ra7+ {[%clk 0:00:04]}  Kf8 {[%clk 0:00:04]} 69. Bb4+ {[%clk 0:00:04]}  Kg8 {[%clk 0:00:04]} 70. Bc3 {[%clk 0:00:03]}  Re6 {[%clk 0:00:04]} 71. Bd4 {[%clk 0:00:03]}  Rd6 {[%clk 0:00:04]} 72. Ke4 {[%clk 0:00:03]}  f5+ {[%clk 0:00:04]} 73. Kd3 {[%clk 0:00:03]}  Kf8 {[%clk 0:00:03]} 74. Ra5 {[%clk 0:00:01]}  Kf7 {[%clk 0:00:03]} 75. Kc4 {[%clk 0:00:02]}  Ke6 {[%clk 0:00:03]} 76. Ra7 {[%clk 0:00:02]}  Ne5+ {[%clk 0:00:03]} 77. Kb5 {[%clk 0:00:02]}  Rxd4 {[%clk 0:00:03]} 78. Ra6+ {[%clk 0:00:02]}  Rd6 {[%clk 0:00:03]} 79. Ra8 {[%clk 0:00:02]}  Rd5+ {[%clk 0:00:04]} 80. Kb4 {[%clk 0:00:02]}  Rd4+ {[%clk 0:00:04]} 81. Kc3 {[%clk 0:00:00]}  Rg4 {[%clk 0:00:05]} 0-1

[Event "December 5 Early 2023"]
[Site "https://www.chess.com"]
[Date "2023.12.05"]
[Round "5"]
[White "Kotlyar, Kirill"]
[Black "Yurasova, Daria"]
[Result "0-1"]
[Board "107"]
[TimeControl "180+1"]
[WhiteFideId "24145599"]
[BlackFideId "34146919"]
[WhiteElo "2629"]
[BlackElo "2453"]
[WhiteTeam "RUS"]
[BlackTeam "RUS"]
[WhiteClock "0:00:00"]
[BlackClock "0:01:05"]

1. e4 {[%clk 0:03:00]}  e5 {[%clk 0:02:56]} 2. Nf3 {[%clk 0:02:58]}  Nc6 {[%clk 0:02:56]} 3. Bb5 {[%clk 0:02:58]}  a6 {[%clk 0:02:55]} 4. Ba4 {[%clk 0:02:58]}  Nf6 {[%clk 0:02:56]} 5. O-O {[%clk 0:02:58]}  b5 {[%clk 0:02:55]} 6. Bb3 {[%clk 0:02:57]}  Bc5 {[%clk 0:02:55]} 7. d3 {[%clk 0:02:51]}  d6 {[%clk 0:02:55]} 8. c3 {[%clk 0:02:51]}  Bb7 {[%clk 0:02:55]} 9. Bg5 {[%clk 0:02:43]}  h6 {[%clk 0:02:53]} 10. Bh4 {[%clk 0:02:43]}  Bb6 {[%clk 0:02:53]} 11. Re1 {[%clk 0:02:39]}  O-O {[%clk 0:02:53]} 12. d4 {[%clk 0:02:31]}  Re8 {[%clk 0:02:43]} 13. h3 {[%clk 0:02:18]}  exd4 {[%clk 0:02:40]} 14. cxd4 {[%clk 0:02:19]}  g5 {[%clk 0:02:40]} 15. Bg3 {[%clk 0:01:48]}  Rxe4 {[%clk 0:02:36]} 16. Nc3 {[%clk 0:01:40]}  Rxe1+ {[%clk 0:02:28]} 17. Qxe1 {[%clk 0:01:41]}  Nxd4 {[%clk 0:02:23]} 18. Nxd4 {[%clk 0:01:39]}  Bxd4 {[%clk 0:02:24]} 19. Qd2 {[%clk 0:01:40]}  Bxc3 {[%clk 0:02:16]} 20. Qxc3 {[%clk 0:01:40]}  Ne4 {[%clk 0:02:16]} 21. Qd3 {[%clk 0:01:36]}  Nxg3 {[%clk 0:02:08]} 22. Qg6+ {[%clk 0:01:35]}  Kh8 {[%clk 0:01:58]} 23. Qxh6+ {[%clk 0:01:35]}  Kg8 {[%clk 0:01:59]} 24. Qg6+ {[%clk 0:01:35]}  Kh8 {[%clk 0:01:59]} 25. Bxf7 {[%clk 0:01:18]}  Ne2+ {[%clk 0:01:47]} 26. Kf1 {[%clk 0:01:12]}  Qf8 {[%clk 0:01:43]} 27. Kxe2 {[%clk 0:00:59]}  Qg7 {[%clk 0:01:36]} 28. Qh5+ {[%clk 0:00:44]}  Qh7 {[%clk 0:01:33]} 29. f3 {[%clk 0:00:41]}  Rf8 {[%clk 0:01:29]} 30. Qxh7+ {[%clk 0:00:39]}  Kxh7 {[%clk 0:01:29]} 31. Bh5 {[%clk 0:00:39]}  c5 {[%clk 0:01:21]} 32. Kd3 {[%clk 0:00:33]}  d5 {[%clk 0:01:21]} 33. Re1 {[%clk 0:00:32]}  Kh6 {[%clk 0:01:16]} 34. Bg4 {[%clk 0:00:30]}  Rf7 {[%clk 0:01:15]} 35. Re6+ {[%clk 0:00:28]}  Kg7 {[%clk 0:01:09]} 36. Bh5 {[%clk 0:00:00]}  Rd7 {[%clk 0:01:05]} 0-1

[Event "December 5 Early 2023"]
[Site "https://www.chess.com"]
[Date "2023.12.05"]
[Round "5"]
[White "Muetsch, Annmarie"]
[Black "Renjith, Sravan"]
[Result "0-1"]
[Board "108"]
[TimeControl "180+1"]
[WhiteFideId "12971367"]
[BlackFideId "4306783"]
[WhiteElo "2447"]
[BlackElo "2628"]
[WhiteTeam "GER"]
[BlackTeam "NZL"]
[WhiteClock "0:00:00"]
[BlackClock "0:00:16"]

1. e4 {[%clk 0:02:59]}  e5 {[%clk 0:02:58]} 2. Nf3 {[%clk 0:02:57]}  Nc6 {[%clk 0:02:58]} 3. Bc4 {[%clk 0:02:54]}  Nf6 {[%clk 0:02:56]} 4. d3 {[%clk 0:02:53]}  Bc5 {[%clk 0:02:55]} 5. c3 {[%clk 0:02:53]}  O-O {[%clk 0:02:54]} 6. Nbd2 {[%clk 0:02:53]}  d5 {[%clk 0:02:54]} 7. exd5 {[%clk 0:02:53]}  Nxd5 {[%clk 0:02:52]} 8. Ne4 {[%clk 0:02:53]}  Be7 {[%clk 0:02:50]} 9. O-O {[%clk 0:02:52]}  Bf5 {[%clk 0:02:38]} 10. Bb3 {[%clk 0:02:39]}  Bg6 {[%clk 0:02:33]} 11. Qe2 {[%clk 0:02:27]}  Kh8 {[%clk 0:02:30]} 12. h3 {[%clk 0:02:15]}  Qd7 {[%clk 0:02:21]} 13. Ng3 {[%clk 0:02:10]}  Nb6 {[%clk 0:01:41]} 14. Rd1 {[%clk 0:02:06]}  Bd6 {[%clk 0:01:37]} 15. d4 {[%clk 0:01:58]}  exd4 {[%clk 0:01:16]} 16. Nxd4 {[%clk 0:01:58]}  Rae8 {[%clk 0:01:16]} 17. Qf1 {[%clk 0:01:42]}  Nxd4 {[%clk 0:01:04]} 18. Rxd4 {[%clk 0:01:38]}  Qc6 {[%clk 0:01:05]} 19. Bf4 {[%clk 0:01:22]}  Bc5 {[%clk 0:01:03]} 20. Rad1 {[%clk 0:01:11]}  Bxd4 {[%clk 0:01:03]} 21. Rxd4 {[%clk 0:01:12]}  Rd8 {[%clk 0:01:00]} 22. Qd1 {[%clk 0:01:07]}  Rxd4 {[%clk 0:00:47]} 23. Qxd4 {[%clk 0:01:08]}  Qd7 {[%clk 0:00:36]} 24. Qc5 {[%clk 0:01:07]}  Re8 {[%clk 0:00:28]} 25. Qxc7 {[%clk 0:01:03]}  Qxc7 {[%clk 0:00:28]} 26. Bxc7 {[%clk 0:01:04]}  Nd7 {[%clk 0:00:25]} 27. Bf4 {[%clk 0:00:59]}  Nc5 {[%clk 0:00:25]} 28. Bc4 {[%clk 0:00:57]}  Re1+ {[%clk 0:00:23]} 29. Kh2 {[%clk 0:00:56]}  Nd3 {[%clk 0:00:18]} 30. Bxd3 {[%clk 0:00:55]}  Bxd3 {[%clk 0:00:19]} 31. Be3 {[%clk 0:00:53]}  a6 {[%clk 0:00:19]} 32. Bd4 {[%clk 0:00:51]}  Rb1 {[%clk 0:00:19]} 33. b4 {[%clk 0:00:48]}  b5 {[%clk 0:00:17]} 34. Nh5 {[%clk 0:00:46]}  f6 {[%clk 0:00:18]} 35. Nf4 {[%clk 0:00:45]}  Bc4 {[%clk 0:00:18]} 36. h4 {[%clk 0:00:37]}  Ra1 {[%clk 0:00:17]} 37. h5 {[%clk 0:00:36]}  h6 {[%clk 0:00:15]} 38. Ng6+ {[%clk 0:00:34]}  Kg8 {[%clk 0:00:15]} 39. Ne7+ {[%clk 0:00:32]}  Kf7 {[%clk 0:00:16]} 40. Nf5 {[%clk 0:00:30]}  Rxa2 {[%clk 0:00:16]} 41. Nd6+ {[%clk 0:00:27]}  Ke6 {[%clk 0:00:16]} 42. Ne8 {[%clk 0:00:26]}  Kf7 {[%clk 0:00:16]} 43. Nd6+ {[%clk 0:00:26]}  Kg8 {[%clk 0:00:16]} 44. g4 {[%clk 0:00:21]}  Bf7 {[%clk 0:00:17]} 45. Nf5 {[%clk 0:00:19]}  Be6 {[%clk 0:00:16]} 46. Ne7+ {[%clk 0:00:05]}  Kf7 {[%clk 0:00:16]} 47. Nc6 {[%clk 0:00:02]}  Bxg4 {[%clk 0:00:16]} 48. Kg3 {[%clk 0:00:02]}  Bxh5 {[%clk 0:00:16]} 49. Nd8+ {[%clk 0:00:02]}  Kg6 {[%clk 0:00:16]} 50. Ne6 {[%clk 0:00:01]}  Kh7 {[%clk 0:00:16]} 51. Nf4 {[%clk 0:00:00]}  Bf7 {[%clk 0:00:16]} 0-1